[Event "Emanuel Lasker Open 2017"]
[Site "Gorzow"]
[Date "2017.06.16"]
[Round "5"]
[White "Kucza, Karol"]
[Black "Aliavdin, Nikolai"]
[Result "1-0"]
[ECO "C91"]
[WhiteElo "2278"]
[BlackElo "2351"]
[Annotator "ChessBase"]
[PlyCount "89"]
[EventDate "2017.??.??"]
[EventType "swiss"]
[EventCountry "POL"]
[SourceTitle "playchess.com"]
[Source "ChessBase"]
[SourceQuality "1"]
[TimeControl "40/5400+30:1800+30"]

1. e4 {[%emt 0:00:00]} e5 {[%emt 0:00:13]} 2. Nf3 {[%emt 0:00:48]} Nc6 {[%emt 0:00:30]} 3. Bb5 {[%emt 0:00:30]} a6 {[%emt 0:00:30]} 4. Ba4 {[%emt 0:00:30]} Nf6 {[%emt 0:00:30]} 5. O-O {[%emt 0:00:00]} Be7 {[%emt 0:00:00]} 6. Re1 {[%emt 0:00:00]} b5 {[%emt 0:00:00]} 7. Bb3 {[%emt 0:00:00]} d6 {[%emt 0:00:00]} 8. c3 {[%emt 0:00:00]} O-O {[%emt 0:00:00]} 9. d4 {[%emt 0:00:07]} Bg4 {[%emt 0:00:25]} 10. Be3 {[%emt 0:00:06]} exd4 {[%emt 0:01:04]} 11. cxd4 {[%emt 0:02:37]} Na5 {[%emt 0:00:06]} 12. Bc2 {[%emt 0:00:04]} Nc4 {[%emt 0:00:07]} 13. Bc1 {[%emt 0:00:04]} c5 {[%emt 0:00:05]} 14. b3 {[%emt 0:00:04]} Nb6 {[%emt 0:00:07]} 15. Nbd2 {[%emt 0:00:03]} cxd4 {[%emt 0:09:08]} 16. Bb2 {[%emt 0:04:35]} Rc8 {[%emt 0:03:03]} 17. h3 {[%emt 0:05:06]} Bh5 {[%emt 0:02:37]} 18. g4 {[%emt 0:04:29]} Bg6 {[%emt 0:02:43]} 19. Nxd4 {[%emt 0:00:14]} d5 {[%emt 0:00:50]} 20. e5 {[%emt 0:00:28]} Bxc2 {[%emt 0:03:44]} 21. Nxc2 {[%emt 0:00:25]} Ne4 {[%emt 0:05:35]} 22. Nxe4 {[%emt 0:01:54]} dxe4 {[%emt 0:01:43]} 23. Nd4 {[%emt 0:07:15]} Nd5 {[%emt 0:05:31]} 24. Rxe4 {[%emt 0:07:41]} Nc3 {[%emt 0:00:44]} 25. Bxc3 {[%emt 0:00:14]} Rxc3 {[%emt 0:00:05]} 26. Rc1 {[%emt 0:21:38]} Rxh3 {[%emt 0:07:04]} 27. Nf5 {[%emt 0:02:38]} Qxd1+ {[%emt 0:16:11]} 28. Rxd1 {[%emt 0:00:08]} Bc5 {[%emt 0:00:12]} 29. Rc1 {[%emt 0:06:11]} Bb6 {[%emt 0:13:28]} 30. Rc6 {[%emt 0:01:13]} Rb8 {[%emt 0:00:38]} 31. e6 {[%emt 0:09:44]} fxe6 {[%emt 0:04:47]} 32. Rexe6 {[%emt 0:00:39]} Ba5 {[%emt 0:03:17]} 33. Rxa6 {[%emt 0:04:21]} Bc3 {[%emt 0:00:06]} 34. Rab6 {[%emt 0:13:24]} Ra8 {[%emt 0:05:18]} 35. Rxb5 {[%emt 0:01:51]} Rxa2 {[%emt 0:00:17]} 36. Rd6 {[%emt 0:04:04]} Bf6 {[%emt 0:10:50]} 37. Rb8+ {[%emt 0:00:06]} Kf7 {[%emt 0:00:08]} 38. Rb7+ {[%emt 0:00:07]} Kf8 {[%emt 0:01:26]} 39. Rb8+ {[%emt 0:00:21]} Kf7 {[%emt 0:00:05]} 40. Rb7+ {[%emt 0:00:00]} Kf8 {[%emt 0:00:07]} 41. Nxg7 {[%emt 0:04:40]} Ra1+ {[%emt 0:04:13]} 42. Kg2 {[%emt 0:00:06]} Rh2+ {[%emt 0:00:04]} 43. Kxh2 {[%emt 0:00:32]} Be5+ {[%emt 0:00:05]} 44. Kg2 {[%emt 0:00:06]} Bxd6 {[%emt 0:00:04]} 45. Ne6+ {[%emt 0:00:04]} 1-0

[Event "Emanuel Lasker Open 2017"]
[Site "Gorzow"]
[Date "2017.06.16"]
[Round "5"]
[White "Kumala, Aleksander"]
[Black "Kubicka, Anna"]
[Result "1/2-1/2"]
[ECO "C41"]
[WhiteElo "2224"]
[BlackElo "2168"]
[Annotator "NA"]
[PlyCount "45"]
[EventDate "2017.??.??"]
[EventType "swiss"]
[EventCountry "POL"]
[SourceTitle "playchess.com"]
[Source "ChessBase"]
[SourceQuality "1"]
[TimeControl "40/5400+30:1800+30"]

1. e4 {[%emt 0:09:54]} d6 {[%emt 0:00:24]} 2. d4 {[%emt 0:00:14]} Nf6 {[%emt 0:00:07]} 3. Nc3 {[%emt 0:00:10]} e5 {[%emt 0:00:20]} 4. Nf3 {[%emt 0:00:06]} Nbd7 {[%emt 0:00:05]} 5. g4 {[%emt 0:00:43]} Nxg4 {[%emt 0:00:51]} 6. Rg1 {[%emt 0:00:09]} Ngf6 {[%emt 0:00:23]} 7. Bc4 {[%emt 0:00:14]} h6 {[%emt 0:00:28]} 8. Be3 {[%emt 0:01:01]} c6 {[%emt 0:00:51]} 9. dxe5 {[%emt 0:00:34]} dxe5 {[%emt 0:00:05]} 10. Qe2 {[%emt 0:01:40]} b5 {[%emt 0:01:04]} 11. Bb3 {[%emt 0:00:22]} Qa5 {[%emt 0:00:05]} 12. O-O-O {[%emt 0:00:49]} Ba6 $1 {[%emt 0:00:56]} 13. Nb1 {[%emt 0:01:31]} c5 {[%emt 0:01:45]} (13... Qc7 $17) 14. Bxf7+ {[%emt 0:04:02]} Kxf7 {[%emt 0:00:14]} 15. Rxd7+ {[%emt 0:00:15]} Nxd7 {[%emt 0:00:35] [#]} 16. Nxe5+ $11 {[%emt 0:00:11]} Nxe5 {[%emt 0:01:03]} 17. Qh5+ {[%emt 0:00:07]} Kg8 {[%emt 0:00:48]} 18. Qxe5 {[%emt 0:00:10]} Rd8 {[%emt 0:04:38]} 19. Rxg7+ {[%emt 0:00:49]} Bxg7 {[%emt 0:00:13]} 20. Qe6+ {[%emt 0:00:04]} Kh7 {[%emt 0:00:23]} 21. Qf5+ {[%emt 0:00:05]} Kg8 {[%emt 0:00:12]} 22. Qe6+ {[%emt 0:00:05]} Kh7 {[%emt 0:00:13]} 23. Qf5+ {[%emt 0:00:05]} 1/2-1/2

[Event "Emanuel Lasker Open 2017"]
[Site "Gorzow"]
[Date "2017.06.16"]
[Round "5"]
[White "Bartnicki, Pawel"]
[Black "Rudecki, Bartosz"]
[Result "1-0"]
[ECO "A50"]
[WhiteElo "2078"]
[BlackElo "2007"]
[Annotator "NA"]
[PlyCount "59"]
[EventDate "2017.??.??"]
[EventType "swiss"]
[EventCountry "POL"]
[SourceTitle "playchess.com"]
[Source "ChessBase"]
[SourceQuality "1"]
[TimeControl "40/5400+30:1800+30"]

{[%evp 17,55,75,122,106,117,32767,83,32767,32767,32767,32767,78,102,32767,138,83,101,68,154,41,37,59,32767,32767,32767,32767,26,66,42,58,301,301,988,1225,32767,32767,32767,5760,29991,419]} 1. d4 {[%emt 0:00:00]} Nf6 {[%emt 0:02:24]} 2. c4 {[%emt 0:00:00]} Nc6 {[%emt 0:00:30]} 3. Nc3 {[%emt 0:02:17]} e5 {[%emt 0:00:09]} 4. d5 {[%emt 0:01:00]} Ne7 {[%emt 0:00:06]} 5. e4 {[%emt 0:00:14]} Ng6 {[%emt 0:00:05]} 6. Be3 {[%emt 0:01:14]} Bb4 {[%emt 0:00:08] A50: Queen's Fianchetto Defence (1 d4 Nf6 2 c4 b6)} 7. f3 {[%emt 0:02:34]} (7. Bd3 Bxc3+ 8. bxc3 d6 9. f3 O-O 10. Ne2 Nd7 11. O-O Nc5 12. Bxc5 dxc5 13. Qd2 f6 14. Rae1 {1-0 (37) Almeida Quintana,O (2521)-Benjamin,J (2583) ICC INT 2009}) 7... Qe7 {[%emt 0:05:17]} 8. Nge2 {[%emt 0:02:28]} a5 {[%emt 0:01:25]} 9. a3 {[%emt 0:12:48]} Bxc3+ $146 {[%emt 0:03:04]} ({Predecessor:} 9... Bc5 10. Bxc5 Qxc5 11. Nb5 O-O 12. Nec3 Ne8 13. Qd2 c6 {1-0 (25) Vicsai,G (2174)-Balogh,L (2228) Eger 2005}) 10. Nxc3 {[%emt 0:00:53]} d6 {[%emt 0:00:13]} 11. b4 {[%emt 0:03:39]} axb4 {[%emt 0:05:30]} 12. axb4 {[%emt 0:00:53]} Rxa1 {[%emt 0:00:04]} 13. Qxa1 {[%emt 0:00:05]} O-O {[%emt 0:01:21]} 14. g3 {[%emt 0:08:05]} Nh5 {[%emt 0:02:38]} 15. Be2 {[%emt 0:06:16]} Nh8 {[%emt 0:09:24]} (15... f5 $1 $14) 16. Qa5 {[%emt 0:04:52]} (16. Nb5 $142) 16... f5 {[%emt 0:06:50]} 17. exf5 {[%emt 0:15:53]} Nf6 {[%emt 0:01:41] [#]} (17... Bxf5 $142 18. Nb5 c6) 18. g4 {[%emt 0:06:57]} (18. Nb5 $1 $16) 18... e4 {[%emt 0:00:11]} 19. f4 {[%emt 0:00:09]} Nxg4 {[%emt 0:00:10]} 20. Bxg4 {[%emt 0:01:07]} Qh4+ {[%emt 0:00:07]} 21. Kd2 {[%emt 0:00:11]} Qxg4 {[%emt 0:00:17]} 22. Rg1 {[%emt 0:00:19]} Qxf5 {[%emt 0:00:31]} 23. Qxc7 {[%emt 0:00:22]} Nf7 $2 {[%emt 0:03:38]} (23... Ng6 $16 {is a better defense.}) 24. Qe7 {[%emt 0:03:40]} Qh3 $2 {[%emt 0:01:25]} (24... Qd7 25. Bd4 (25. Qxe4 Nh6 $14) 25... g6 26. Qxd7 e3+ 27. Ke2 Bxd7) 25. Nxe4 {[%emt 0:01:03]} g6 {[%emt 0:03:02]} 26. Nf6+ {[%emt 0:02:57]} Kg7 {[%emt 0:00:09]} 27. Bd4 {[%emt 0:01:23]} Rd8 {[%emt 0:01:49]} 28. Ng4+ $18 {[%emt 0:04:03]} (28. Nxh7+ $142 Kh6 29. Ng5 Qxh2+ 30. Kc3 Be6 31. Nxf7+ Bxf7 {[#]} 32. Rxg6+ $1 {[%mdl 512]} Bxg6 33. Bg7+ Kh7 34. Bf8+ Bf7 35. Qxf7+ Kh8 36. Qg7#) 28... Kg8 {[%emt 0:00:09]} 29. Qf6 {[%emt 0:00:34]} Kf8 {[%emt 0:00:17]} 30. Qg7+ {[%emt 0:00:16]} 1-0

[Event "Emanuel Lasker Open 2017"]
[Site "Gorzow"]
[Date "2017.06.16"]
[Round "5"]
[White "Chyzy, Jakub"]
[Black "Lukasiewicz, Krzysztof"]
[Result "0-1"]
[ECO "B12"]
[WhiteElo "1838"]
[BlackElo "2098"]
[Annotator "NA RC"]
[PlyCount "132"]
[EventDate "2017.??.??"]
[EventType "swiss"]
[EventCountry "POL"]
[SourceTitle "playchess.com"]
[Source "ChessBase"]
[SourceQuality "1"]
[TimeControl "40/5400+30:1800+30"]

1. e4 {[%emt 0:00:00]} c6 {[%emt 0:11:45]} 2. d4 {[%emt 0:00:00]} d5 {[%emt 0:00:03]} 3. e5 {[%emt 0:00:00]} Bf5 {[%emt 0:00:05]} 4. Nf3 {[%emt 0:00:00]} e6 {[%emt 0:00:15]} 5. a3 {[%emt 0:00:00]} Nd7 {[%emt 0:05:28]} 6. Be2 {[%emt 0:00:54]} c5 {[%emt 0:01:57] B12: Caro-Kann: Advance Variation} 7. O-O {[%emt 0:10:39]} Ne7 {[%emt 0:01:14]} 8. dxc5 {[%emt 0:01:33]} Nc6 {[%emt 0:05:00]} 9. b4 {[%emt 0:04:23]} a5 $1 {[%emt 0:04:25]} 10. b5 {[%emt 0:02:56]} (10. Bg5 $11 Be7 11. Bxe7 Qxe7 12. Nc3) (10. Nd4 axb4 11. Nxf5 exf5 12. Bb2 Bxc5 13. axb4 Rxa1 14. Bxa1 Nxb4 15. Nc3 {½-½ (50) Svidler,P (2734)-So,W (2674) Amsterdam 2010}) 10... Ncxe5 {[%emt 0:00:08]} 11. Nxe5 {[%emt 0:02:35]} Nxe5 {[%emt 0:00:04]} 12. Qd4 $146 {[%emt 0:09:01]} ({Predecessor:} 12. Bb2 f6 13. Bd4 Be7 14. f4 {1-0 (32) Castella Garcia,F (2381)-Hernandez Casillas,J (2169) Mislata 2007}) 12... f6 {[%emt 0:03:12]} 13. f4 {[%emt 0:16:40]} Rc8 {[%emt 0:06:41]} 14. c6 $1 {[%emt 0:00:46]} Nc4 {[%emt 0:00:14]} 15. Bxc4 {[%emt 0:03:35]} dxc4 {[%emt 0:00:15]} 16. Qxd8+ {[%emt 0:03:52]} Rxd8 {[%emt 0:00:06]} 17. Be3 {[%emt 0:01:52]} bxc6 {[%emt 0:00:31]} ({But not} 17... Bxc2 $6 18. c7 $14) 18. b6 {[%emt 0:01:14]} Bxc2 {[%emt 0:03:48]} 19. Rc1 {[%emt 0:02:47]} Bb3 {[%emt 0:16:28]} 20. Nd2 {[%emt 0:01:26] [#]} Rd3 {[%emt 0:03:05]} (20... Rxd2 $1 $19 {has better winning chances.} 21. Bxd2 Bc5+ 22. Kf1 Bxb6) 21. b7 {[%emt 0:15:16]} Bd6 {[%emt 0:00:38]} 22. Kf2 {[%emt 0:00:13]} Kd7 {[%emt 0:01:52]} 23. Rab1 {[%emt 0:06:05]} (23. Nxc4 $17 {was necessary.} Bxc4 24. Rxc4) 23... Bxa3 {[%emt 0:03:07]} 24. Rxc4 {[%emt 0:02:45]} Bxc4 {[%emt 0:08:17]} 25. Nxc4 {[%emt 0:00:11]} Rxe3 {[%emt 0:00:33]} (25... Bb4 $19 {has better winning chances.} 26. Ba7 Rc3 27. Nxa5 Bxa5) 26. Kxe3 {[%emt 0:03:01]} Bc5+ {[%emt 0:01:43]} 27. Kd3 {[%emt 0:00:53]} Kc7 {[%emt 0:00:57]} 28. Nxa5 {[%emt 0:00:54]} Rd8+ {[%emt 0:01:31]} 29. Kc3 {[%emt 0:04:34]} Bb6 {[%emt 0:00:38]} 30. Nc4 {[%emt 0:00:33]} Bd4+ {[%emt 0:00:08]} 31. Kc2 {[%emt 0:01:00]} Rb8 {[%emt 0:00:18]} 32. Re1 {[%emt 0:01:29]} e5 {[%emt 0:01:09]} 33. fxe5 {[%emt 0:00:16]} Bxe5 {[%emt 0:01:10]} 34. Nxe5 {[%emt 0:00:17]} fxe5 {[%emt 0:00:08]} 35. Rxe5 {[%emt 0:00:22]} Kd6 {[%emt 0:00:10]} 36. Re3 {[%emt 0:01:18]} Rxb7 {[%emt 0:00:06]} 37. Rd3+ {[%emt 0:00:09]} Kc7 {[%emt 0:00:44]} 38. Rf3 {[%emt 0:01:37]} c5 {[%emt 0:00:20]} 39. Kc3 {[%emt 0:00:55]} Kd6 {[%emt 0:01:16]} 40. Rh3 {[%emt 0:00:00]} g6 {[%emt 0:02:14]} 41. Rf3 {[%emt 0:03:02]} Ra7 {[%emt 0:00:26]} 42. Rf6+ {[%emt 0:00:37]} (42. Rf2 $17 {was worth a try.}) 42... Kd5 {[%emt 0:00:13]} 43. Rf2 {[%emt 0:01:46]} Ra3+ {[%emt 0:00:38]} 44. Kb2 {[%emt 0:00:20]} Re3 {[%emt 0:00:04]} 45. Kc2 {[%emt 0:01:23]} Kc4 {[%emt 0:01:02]} 46. Rf4+ {[%emt 0:01:30]} Kb5 {[%emt 0:00:05]} 47. Rf7 {[%emt 0:00:51]} h5 {[%emt 0:02:35]} 48. g3 $1 $11 {[%emt 0:01:54]} Re6 $2 {[%emt 0:01:35]} ({Better is} 48... g5 $19 49. Kd2 Ra3) 49. Kc3 {[%emt 0:01:07]} Re3+ {[%emt 0:01:10]} 50. Kd2 $2 {[%emt 0:01:48]} Ra3 {[%emt 0:00:24]} 51. Kc2 {[%emt 0:02:04]} Kb4 {[%emt 0:02:51]} 52. Rf6 {[%emt 0:03:19]} Ra2+ {[%emt 0:00:09]} 53. Kb1 {[%emt 0:01:46]} Rxh2 54. Rxg6 {[%emt 0:00:21]} c4 {[%emt 0:01:28]} 55. Rf6 {[%emt 0:00:44]} Rh3 {[%emt 0:06:00]} 56. Rf5 {[%emt 0:01:47]} Kb3 {[%emt 0:01:27]} 57. Rb5+ {[%emt 0:09:40]} Kc3 {[%emt 0:00:05]} 58. Rf5 {[%emt 0:00:22]} Rh1+ {[%emt 0:01:53]} 59. Ka2 {[%emt 0:00:07]} Kc2 {[%emt 0:02:06]} 60. Rf2+ {[%emt 0:01:13]} Kd3 {[%emt 0:02:04]} 61. Rf3+ {[%emt 0:00:21]} Kd2 {[%emt 0:01:13]} 62. Rf2+ {[%emt 0:03:02]} Ke3 {[%emt 0:01:38]} 63. Rf4 $2 {[%emt 0:00:52]} (63. Rf5) 63... h4 {[%emt 0:03:00]} 64. Rg4 {[%emt 0:03:39]} c3 {[%emt 0:02:13]} 65. Kb3 {[%emt 0:01:20]} Kd3 {[%emt 0:00:06]} 66. gxh4 {[%emt 0:00:09]} Rb1+ {[%emt 0:00:06]} 0-1